[Event "Czech Open Rapid G1 2024"]
[Site "Pardubice"]
[Date "2024.07.18"]
[Round "6.14"]
[White "Fishchuk, Vladyslav"]
[Black "Freisler, Pavel"]
[Result "1-0"]
[Annotator "RC"]
[ECO "A00"]
[WhiteElo "2234"]
[BlackElo "2261"]
[PlyCount "91"]
[EventDate "2024.07.16"]
[EventType "swiss"]
[EventCountry "CZE"]
[SourceTitle "playchess.com"]
[Source "ChessBase"]
[SourceQuality "1"]
[TimeControl "1200+10"]

1. Nc3 {[%emt 0:00:02]} e5 {[%emt 0:00:33]} 2. Nf3 {[%emt 0:00:02]} Nc6 {[%emt 0:00:08]} 3. d4 {[%emt 0:00:02]} exd4 {[%emt 0:00:29]} 4. Nxd4 {[%emt 0:00:01]} g6 {[%emt 0:00:31]} 5. Nd5 {[%emt 0:00:14]} Bc5 {[%emt 0:02:14]} 6. Nb5 {[%emt 0:00:58]} Bb6 {[%emt 0:00:18]} 7. Bf4 {[%emt 0:00:48]} d6 {[%emt 0:00:05]} 8. e3 {[%emt 0:00:52]} Be6 {[%emt 0:00:24]} 9. Nxb6 {[%emt 0:00:15]} axb6 {[%emt 0:00:01]} 10. Be2 {[%emt 0:00:21]} Nge7 {[%emt 0:00:43]} 11. a3 {[%emt 0:00:42]} Nd5 {[%emt 0:01:46]} 12. Bg3 {[%emt 0:00:26]} h5 {[%emt 0:01:21]} 13. e4 {[%emt 0:01:35]} Nde7 {[%emt 0:01:00]} 14. Bh4 {[%emt 0:00:20]} Qd7 {[%emt 0:00:01]} 15. Qd2 {[%emt 0:00:21]} O-O-O {[%emt 0:00:11]} 16. O-O {[%emt 0:00:31]} f5 {[%emt 0:00:25]} 17. exf5 {[%emt 0:00:19]} Bxf5 {[%emt 0:00:14]} 18. a4 {[%emt 0:00:08]} Qe6 {[%emt 0:04:24]} 19. Rfe1 {[%emt 0:00:17]} Rde8 {[%emt 0:00:16]} 20. a5 {[%emt 0:03:47]} bxa5 {[%emt 0:00:02]} 21. Bf3 {[%emt 0:01:16]} Qc4 {[%emt 0:00:28]} 22. Bxe7 {[%emt 0:00:26]} Qxb5 {[%emt 0:00:28]} 23. Bf6 {[%emt 0:00:49]} Rhf8 {[%emt 0:01:11]} 24. c4 {[%emt 0:02:15]} Rxe1+ {[%emt 0:02:02]} 25. Rxe1 {[%emt 0:00:14]} Qxc4 {[%emt 0:00:24]} 26. Bd5 {[%emt 0:02:33]} Qd3 {[%emt 0:01:24]} 27. Qh6 {[%emt 0:00:02]} Rxf6 {[%emt 0:01:46]} 28. Bxc6 {[%emt 0:00:02]} bxc6 {[%emt 0:00:35]} 29. Qh8+ {[%emt 0:00:00]} Kb7 {[%emt 0:00:02]} 30. Qxf6 {[%emt 0:00:02]} Qd2 {[%emt 0:00:31]} 31. Ra1 {[%emt 0:00:27]} c5 {[%emt 0:00:22]} 32. h3 {[%emt 0:00:19]} Kb6 {[%emt 0:00:34]} 33. Qh8 {[%emt 0:00:52]} Kb7 {[%emt 0:00:11]} 34. Qg7 {[%emt 0:01:25]} Bc2 {[%emt 0:00:02]} 35. Qf7 {[%emt 0:00:25]} a4 {[%emt 0:00:12]} 36. Qc4 {[%emt 0:00:11]} Kb6 {[%emt 0:00:16]} 37. Qg8 {[%emt 0:00:11]} Kb7 {[%emt 0:00:03]} 38. Qe8 {[%emt 0:00:09]} Qd3 {[%emt 0:00:16]} 39. Re1 {[%emt 0:00:33]} Bb3 {[%emt 0:00:08]} 40. Qh8 {[%emt 0:00:21]} Qd4 {[%emt 0:00:05]} 41. Qe8 {[%emt 0:00:25]} Qd3 {[%emt 0:00:15]} 42. Re3 {[%emt 0:00:13]} Qb1+ {[%emt 0:00:25]} 43. Kh2 {[%emt 0:00:02]} Qxb2 {[%emt 0:00:02]} 44. Qb5+ {[%emt 0:00:06]} Ka7 {[%emt 0:00:23]} 45. Re7 {[%emt 0:00:35]} Qxf2 {[%emt 0:00:17]} 46. Rxc7+ {[%emt 0:00:04]} 1-0

[Event "Czech Open Rapid G1 2024"]
[Site "Pardubice"]
[Date "2024.07.18"]
[Round "6.15"]
[White "Novotny, Dominik"]
[Black "Stocek, Jiri"]
[Result "0-1"]
[Annotator "TA"]
[ECO "B07"]
[WhiteElo "1921"]
[BlackElo "2524"]
[PlyCount "68"]
[EventDate "2024.07.16"]
[EventType "swiss"]
[EventCountry "CZE"]
[SourceTitle "playchess.com"]
[Source "ChessBase"]
[SourceQuality "1"]
[TimeControl "1200+10"]

{[%evp 9,68,32,29,13,23,22,17,0,52,2,57,53,49,52,37,14,16,23,35,-40,-40,-51,-67,-58,-62,-96,-108,-109,-101,-240,-235,-209,-227,-244,-226,-231,-239,-314,-255,-244,-230,-257,-273,-229,-201,-298,-202,-474,-489,-475,-530,-531,-515,-535,-531,-653,-626,-747,-749,-1362,-1287]} 1. e4 {[%emt 0:00:02]} d6 {[%emt 0:00:04]} 2. d4 {[%emt 0:00:06]} Nf6 {[%emt 0:00:02]} 3. Nc3 {[%emt 0:00:01]} g6 {[%emt 0:00:02]} 4. h3 {[%emt 0:00:08]} a6 {[%emt 0:00:07]} 5. g4 {[%emt 0:00:21]} b5 {[%emt 0:00:06]} 6. Bg2 {[%emt 0:01:23] [#] Hoping for e5.} Bb7 {[%emt 0:00:08]} 7. a3 {[%emt 0:00:21]} Nbd7 {[%emt 0:00:14]} 8. Nge2 {[%emt 0:02:57] The position is equal.} e5 {[%emt 0:00:37]} (8... Bg7 $11) 9. O-O {[%emt 0:01:01]} (9. d5 $14) 9... c6 {[%emt 0:00:45]} (9... Bg7 $1 $11) 10. Be3 {[%emt 0:00:25]} Bg7 {[%emt 0:00:43]} 11. Ng3 {[%emt 0:00:45]} O-O {[%emt 0:01:06]} 12. f4 {[%emt 0:00:50]} exd4 {[%emt 0:01:55]} 13. Bxd4 {[%emt 0:00:08]} Nb6 {[%emt 0:00:38][%cal Bd7b6,Bb6c4,Bc4b2][%mdl 32]} 14. f5 {[%emt 0:03:39]} (14. Qd3 $14) 14... c5 $15 {[%emt 0:00:16]} 15. Be3 {[%emt 0:01:08][%cal Oe4e5]} Nc4 {[%emt 0:00:28][%csl LRb2,LRe3]} 16. Bf4 {[%emt 0:00:45]} Nd7 {[%emt 0:00:19]} 17. Nge2 {[%emt 0:03:15]} Nxb2 {[%emt 0:01:00] Black is more active.} 18. Qxd6 {[%emt 0:00:37]} Nc4 {[%emt 0:00:37]} 19. Qc7 {[%emt 0:00:18] Now White is beyond hope.} (19. Qd3 $17) 19... Qxc7 $19 {[%emt 0:00:39]} 20. Bxc7 {[%emt 0:00:02]} Ne3 {[%emt 0:00:44][%csl LRc2,LRf1] Prevents Rad1} 21. Rfc1 {[%emt 0:00:22]} Rac8 {[%emt 0:00:25]} 22. Bd6 {[%emt 0:00:56]} Rfe8 {[%emt 0:00:06]} 23. Ra2 {[%emt 0:01:04]} Ne5 {[%emt 0:01:38] aiming for ...Nxg2.} 24. Bxe5 {[%emt 0:01:42]} Bxe5 {[%emt 0:00:08]} 25. Bh1 {[%emt 0:00:05]} Bf6 {[%emt 0:01:51] This pair of bishops is nice.} 26. Kf2 {[%emt 0:00:26]} Bg5 {[%emt 0:00:04]} 27. Re1 {[%emt 0:00:44]} (27. Bf3 {was worth a try.}) 27... b4 {[%emt 0:01:26]} 28. Nd5 {[%emt 0:00:46]} (28. Rb1) 28... Nxd5 {[%emt 0:00:28] Black is clearly winning.} 29. exd5 {[%emt 0:00:01] White is weak on the dark squares} Bh4+ {[%emt 0:00:03]} 30. Kf1 {[%emt 0:00:24]} Bxe1 {[%emt 0:00:03]} 31. Kxe1 {[%emt 0:00:01]} Re5 {[%emt 0:01:01][%csl LRd5,LRf5] [#] Strongly threatening ...Rce8.} 32. axb4 {[%emt 0:00:34]} cxb4 {[%emt 0:00:06] ...b3 is the strong threat.} 33. Kf1 {[%emt 0:00:10]} Bxd5 {[%emt 0:00:40]} 34. Rxa6 {[%emt 0:00:11]} Bxh1 {[%emt 0:00:16] Weighted Error Value: White=0.71/Black=0.16 (very precise) .  Mistake:       	White=5     	Black=2      Inaccurate:     	White=2     	Black=1      OK:         	White=4     	Black=10     Best:        	White=1     	Black=3} 0-1

[Event "Czech Open Rapid G1 2024"]
[Site "Pardubice"]
[Date "2024.07.18"]
[Round "6.16"]
[White "Jares, Michal"]
[Black "Flasar, Jaroslav"]
[Result "1-0"]
[Annotator "RC"]
[ECO "B40"]
[WhiteElo "2382"]
[BlackElo "2012"]
[PlyCount "55"]
[EventDate "2024.07.16"]
[EventType "swiss"]
[EventCountry "CZE"]
[SourceTitle "playchess.com"]
[Source "ChessBase"]
[SourceQuality "1"]
[TimeControl "1200+10"]

1. e4 {[%emt 0:00:04]} c5 {[%emt 0:00:02]} 2. Nf3 {[%emt 0:00:02]} e6 {[%emt 0:00:02]} 3. b3 {[%emt 0:00:07]} Nc6 {[%emt 0:00:04]} 4. Bb2 {[%emt 0:00:36]} Nf6 {[%emt 0:00:02]} 5. e5 {[%emt 0:00:41]} Nd5 {[%emt 0:00:02]} 6. c4 {[%emt 0:00:07]} Nde7 {[%emt 0:00:14]} 7. Nc3 {[%emt 0:01:46]} a6 {[%emt 0:00:17]} 8. Bd3 {[%emt 0:01:31]} Qc7 {[%emt 0:00:07]} 9. O-O {[%emt 0:00:35]} b6 {[%emt 0:00:55]} 10. Re1 {[%emt 0:00:13]} Bb7 {[%emt 0:00:02]} 11. Ne4 {[%emt 0:01:59]} Ng6 {[%emt 0:00:21]} 12. Neg5 {[%emt 0:00:05]} Be7 {[%emt 0:00:46]} 13. Be4 {[%emt 0:01:21]} f5 {[%emt 0:01:47]} 14. exf6 {[%emt 0:00:13]} gxf6 {[%emt 0:00:55]} 15. Nxh7 {[%emt 0:01:39]} f5 {[%emt 0:00:01]} 16. Bxc6 {[%emt 0:04:45]} Bxc6 {[%emt 0:00:02]} 17. Bxh8 {[%emt 0:00:18]} Nxh8 {[%emt 0:00:02]} 18. d4 {[%emt 0:00:28]} cxd4 {[%emt 0:01:57]} 19. Nxd4 {[%emt 0:00:01]} O-O-O {[%emt 0:00:03]} 20. Nxc6 {[%emt 0:00:34]} dxc6 {[%emt 0:00:07]} 21. Qe2 {[%emt 0:00:23]} Bd6 {[%emt 0:01:22]} 22. Qxe6+ {[%emt 0:00:08]} Kb8 {[%emt 0:00:01]} 23. Nf6 {[%emt 0:00:11]} Bxh2+ {[%emt 0:00:10]} 24. Kf1 {[%emt 0:00:18]} Ng6 {[%emt 0:01:06]} 25. Rad1 {[%emt 0:00:02]} Rh8 {[%emt 0:01:33]} 26. Nd7+ {[%emt 0:00:51]} Ka7 {[%emt 0:00:08]} 27. Qxg6 {[%emt 0:00:26]} Bf4 {[%emt 0:00:52]} 28. g3 {[%emt 0:00:15]} 1-0

[Event "Czech Open Rapid G1 2024"]
[Site "Pardubice"]
[Date "2024.07.18"]
[Round "6.17"]
[White "Sherman, Raem"]
[Black "Eropunov, Gleb"]
[Result "0-1"]
[Annotator "ChessBase"]
[ECO "B22"]
[WhiteElo "2358"]
[BlackElo "2190"]
[PlyCount "294"]
[EventDate "2024.07.16"]
[EventType "swiss"]
[EventCountry "CZE"]
[SourceTitle "playchess.com"]
[Source "ChessBase"]
[SourceQuality "1"]
[TimeControl "1200+10"]

1. e4 {[%emt 0:00:18]} c5 {[%emt 0:00:03]} 2. c3 {[%emt 0:00:02]} Nf6 {[%emt 0:00:04]} 3. e5 {[%emt 0:00:02]} Nd5 {[%emt 0:00:02]} 4. Nf3 {[%emt 0:00:02]} e6 {[%emt 0:00:03]} 5. d4 {[%emt 0:00:08]} cxd4 {[%emt 0:00:02]} 6. cxd4 {[%emt 0:00:02]} b6 {[%emt 0:00:02]} 7. Bc4 {[%emt 0:00:19]} Ba6 {[%emt 0:00:04]} 8. Bxd5 {[%emt 0:01:06]} exd5 {[%emt 0:00:02]} 9. Nc3 {[%emt 0:00:03]} Bb4 {[%emt 0:02:27]} 10. Qb3 {[%emt 0:00:48]} Bxc3+ {[%emt 0:01:32]} 11. bxc3 {[%emt 0:00:02]} Bc4 {[%emt 0:01:02]} 12. Qa3 {[%emt 0:00:02]} Nc6 {[%emt 0:00:18]} 13. Bg5 {[%emt 0:00:39]} f6 {[%emt 0:02:25]} 14. exf6 {[%emt 0:00:13]} gxf6 {[%emt 0:00:02]} 15. Be3 {[%emt 0:00:05]} Kf7 {[%emt 0:01:02]} 16. Nd2 {[%emt 0:00:32]} Na5 {[%emt 0:00:42]} 17. Qd6 {[%emt 0:00:46]} Qe7 {[%emt 0:02:47]} 18. Nxc4 {[%emt 0:00:15]} dxc4 {[%emt 0:03:51]} 19. Qd5+ {[%emt 0:00:03]} Qe6 {[%emt 0:00:27]} 20. Qh5+ {[%emt 0:00:02]} Kg7 {[%emt 0:00:34]} 21. O-O {[%emt 0:00:08]} Rhe8 {[%emt 0:00:48]} 22. d5 {[%emt 0:01:03]} Qe4 {[%emt 0:00:30]} 23. Qh6+ {[%emt 0:00:17]} Kf7 {[%emt 0:00:06]} 24. Bd4 {[%emt 0:00:14]} Qf5 {[%emt 0:00:21]} 25. g3 {[%emt 0:01:11]} Nb7 {[%emt 0:00:33]} 26. a4 {[%emt 0:00:16]} Re7 {[%emt 0:01:31]} 27. Rae1 {[%emt 0:01:12]} Rae8 {[%emt 0:00:05]} 28. Re3 {[%emt 0:00:04]} Nd6 {[%emt 0:01:35]} 29. Kg2 {[%emt 0:00:21]} Qg6 {[%emt 0:01:11]} 30. Qf4 {[%emt 0:00:57]} Nf5 {[%emt 0:00:05]} 31. Rxe7+ {[%emt 0:00:57]} Rxe7 {[%emt 0:00:04]} 32. Kg1 {[%emt 0:00:24]} Nxd4 {[%emt 0:00:19]} 33. Qxd4 {[%emt 0:00:02]} Qe4 {[%emt 0:00:07]} 34. Qd2 {[%emt 0:00:08]} Re5 {[%emt 0:00:18]} 35. Rd1 {[%emt 0:00:10]} d6 {[%emt 0:00:10]} 36. Qh6 {[%emt 0:00:57]} Rxd5 {[%emt 0:00:44]} 37. Rxd5 Qxd5 {[%emt 0:00:01]} 38. Qxh7+ {[%emt 0:00:04]} Ke6 {[%emt 0:00:00]} 39. Qc2 {[%emt 0:01:41]} Qf3 {[%emt 0:00:21]} 40. h4 {[%emt 0:00:10]} d5 {[%emt 0:00:03]} 41. Qd2 {[%emt 0:00:11]} Ke5 {[%emt 0:00:24]} 42. Qe1+ {[%emt 0:00:48]} Kd6 {[%emt 0:00:10]} 43. Qa1 {[%emt 0:00:02]} Ke5 {[%emt 0:00:09]} 44. a5 {[%emt 0:00:18]} bxa5 {[%emt 0:00:10]} 45. Qxa5 {[%emt 0:00:25]} Kf5 {[%emt 0:00:12]} 46. Qc5 {[%emt 0:02:05]} Kg4 {[%emt 0:00:06]} 47. Kh2 {[%emt 0:00:29]} a5 {[%emt 0:00:02]} 48. Qc8+ {[%emt 0:00:18]} Kh5 {[%emt 0:00:05]} 49. Qh8+ {[%emt 0:00:24]} Kg6 {[%emt 0:00:14]} 50. Qg8+ {[%emt 0:00:03]} Kf5 {[%emt 0:00:15]} 51. Qh7+ {[%emt 0:00:26]} Ke6 {[%emt 0:00:08]} 52. Qc2 {[%emt 0:00:17]} Qf5 {[%emt 0:00:16]} 53. Qb2 {[%emt 0:00:12]} a4 {[%emt 0:00:06]} 54. Kg1 {[%emt 0:00:18]} Qd3 {[%emt 0:00:09]} 55. h5 {[%emt 0:00:13]} Qd1+ {[%emt 0:00:06]} 56. Kg2 {[%emt 0:00:01]} Qxh5 {[%emt 0:00:01]} 57. Qb6+ {[%emt 0:00:06]} Kf7 {[%emt 0:00:21]} 58. Qa7+ {[%emt 0:00:03]} Kg6 {[%emt 0:00:06]} 59. Qxa4 {[%emt 0:00:02]} Qe2 {[%emt 0:00:08]} 60. Qb4 {[%emt 0:00:16]} Qe4+ {[%emt 0:00:06]} 61. Kh2 {[%emt 0:00:03]} Qf3 {[%emt 0:00:14]} 62. Qb2 {[%emt 0:00:02]} Kf5 {[%emt 0:00:10]} 63. Qd2 {[%emt 0:00:07]} Qd3 {[%emt 0:00:08]} 64. Qc1 {[%emt 0:00:16]} d4 {[%emt 0:00:12]} 65. Qf4+ {[%emt 0:00:10]} Ke6 {[%emt 0:00:05]} 66. Qg4+ {[%emt 0:00:20]} Ke7 {[%emt 0:00:15]} 67. cxd4 {[%emt 0:00:16]} c3 {[%emt 0:00:01]} 68. d5 {[%emt 0:00:38]} f5 {[%emt 0:00:26]} 69. Qb4+ {[%emt 0:00:11]} Kd7 {[%emt 0:00:08]} 70. Qb7+ {[%emt 0:00:02]} Kd8 {[%emt 0:00:13]} 71. Qb6+ {[%emt 0:00:12]} Kd7 {[%emt 0:00:15]} 72. Qc6+ {[%emt 0:00:02]} Ke7 {[%emt 0:00:04]} 73. Qc7+ {[%emt 0:00:07]} Kf6 {[%emt 0:00:03]} 74. d6 {[%emt 0:00:03]} Qd4 {[%emt 0:00:27]} 75. Qe7+ {[%emt 0:01:59]} Kg6 {[%emt 0:00:01]} 76. Qe6+ {[%emt 0:00:12]} Kg7 {[%emt 0:00:19]} 77. Qxf5 {[%emt 0:01:55]} Qxd6 {[%emt 0:00:01]} 78. Qg4+ {[%emt 0:00:13]} Qg6 {[%emt 0:00:09]} 79. Qd4+ {[%emt 0:00:04]} Qf6 {[%emt 0:00:01]} 80. Qc5 {[%emt 0:00:03]} Qh6+ {[%emt 0:00:17]} 81. Kg2 {[%emt 0:00:07]} Qd2 {[%emt 0:00:00]} 82. Qc7+ {[%emt 0:00:11]} Kf6 {[%emt 0:00:04]} 83. Qc6+ {[%emt 0:00:02]} Ke5 {[%emt 0:00:12]} 84. Qc7+ {[%emt 0:00:18]} Kd4 {[%emt 0:00:14]} 85. Qd7+ {[%emt 0:00:05]} Kc4 {[%emt 0:00:20]} 86. Qa4+ {[%emt 0:00:03]} Kd3 {[%emt 0:00:02]} 87. Qa6+ {[%emt 0:00:05]} Kc2 {[%emt 0:00:11]} 88. Qa2+ {[%emt 0:00:02]} Kd1 {[%emt 0:00:13]} 89. Qb1+ {[%emt 0:00:03]} Qc1 {[%emt 0:00:06]} 90. Qd3+ {[%emt 0:00:19]} Ke1 {[%emt 0:00:23]} 91. Qe4+ {[%emt 0:00:23]} Kd2 {[%emt 0:00:01]} 92. g4 {[%emt 0:00:42]} c2 {[%emt 0:00:23]} 93. Qd4+ {[%emt 0:01:01]} Ke2 {[%emt 0:00:10]} 94. Qc4+ {[%emt 0:00:13]} Kd1 {[%emt 0:00:11]} 95. Qd3+ {[%emt 0:00:13]} Qd2 {[%emt 0:00:04]} 96. Qf1+ {[%emt 0:00:01]} Qe1 {[%emt 0:00:01]} 97. Qd3+ {[%emt 0:00:02]} Kc1 {[%emt 0:00:21]} 98. Qd4 {[%emt 0:00:33]} Qa5 {[%emt 0:00:15]} 99. Qe3+ {[%emt 0:00:44]} Kb2 {[%emt 0:00:04]} 100. Qd4+ {[%emt 0:00:02]} Qc3 {[%emt 0:00:04]} 101. Qb6+ {[%emt 0:00:03]} Qb3 {[%emt 0:00:02]} 102. Qd4+ {[%emt 0:00:17]} Qc3 {[%emt 0:00:03]} 103. Qb6+ {[%emt 0:00:01]} Qb3 {[%emt 0:00:01]} 104. Qd4+ {[%emt 0:00:02]} Kb1 {[%emt 0:00:07]} 105. Qe4 {[%emt 0:00:02]} Ka2 {[%emt 0:00:09]} 106. Qf4 {[%emt 0:00:45]} Qb2 {[%emt 0:00:40]} 107. Qa4+ {[%emt 0:00:05]} Kb1 {[%emt 0:00:02]} 108. Qe4 {[%emt 0:00:01]} Ka1 {[%emt 0:00:19]} 109. Qa4+ {[%emt 0:00:02]} Qa2 {[%emt 0:00:03]} 110. Qd4+ {[%emt 0:00:02]} Kb1 {[%emt 0:00:03]} 111. Qb4+ {[%emt 0:00:04]} Qb2 {[%emt 0:00:01]} 112. Qe4 {[%emt 0:00:01]} Qb5 {[%emt 0:00:36]} 113. Kh2 {[%emt 0:00:33]} Qc5 {[%emt 0:00:06]} 114. Kg2 {[%emt 0:00:11]} Kb2 {[%emt 0:00:02]} 115. Qe2 {[%emt 0:00:05]} Kb3 {[%emt 0:00:09]} 116. Qd3+ {[%emt 0:00:14]} Kb2 {[%emt 0:00:06]} 117. Qd2 {[%emt 0:00:10]} Qc6+ {[%emt 0:00:12]} 118. f3 {[%emt 0:00:22]} Qc3 {[%emt 0:00:10]} 119. Qe2 {[%emt 0:00:03]} Qc5 {[%emt 0:00:15]} 120. Kh3 {[%emt 0:00:13]} Kb1 {[%emt 0:00:17]} 121. Qd3 {[%emt 0:00:08]} Kb2 {[%emt 0:00:04]} 122. Qe2 {[%emt 0:00:01]} Kb3 {[%emt 0:00:16]} 123. Qd3+ {[%emt 0:00:02]} Ka2 {[%emt 0:00:06]} 124. Qe2 {[%emt 0:00:15]} Ka1 {[%emt 0:00:07]} 125. Qa6+ {[%emt 0:00:02]} Kb2 {[%emt 0:00:02]} 126. Qe2 {[%emt 0:00:02]} Kb1 {[%emt 0:00:10]} 127. Qd3 {[%emt 0:00:01]} Ka2 {[%emt 0:00:20]} 128. Qe2 {[%emt 0:00:09]} Kb2 {[%emt 0:00:03]} 129. Kg2 {[%emt 0:00:26]} Kc3 {[%emt 0:00:19]} 130. Qe1+ {[%emt 0:00:05]} Kd3 {[%emt 0:00:13]} 131. Qc1 {[%emt 0:00:27]} Qe3 {[%emt 0:00:09]} 132. Qa3+ {[%emt 0:00:09]} Kd2 {[%emt 0:00:03]} 133. Qb4+ {[%emt 0:00:21]} Ke2 {[%emt 0:00:11]} 134. Qc4+ {[%emt 0:00:08]} Qd3 {[%emt 0:00:02]} 135. Qc6 {[%emt 0:00:23]} Kd2 {[%emt 0:00:18]} 136. Qh6+ {[%emt 0:00:10]} Ke2 {[%emt 0:00:04]} 137. Qc6 {[%emt 0:00:01]} Ke1 {[%emt 0:00:16]} 138. Kg3 {[%emt 0:00:17]} Qd2 {[%emt 0:00:21]} 139. Qe4+ {[%emt 0:00:15]} Kd1 {[%emt 0:00:13]} 140. Qa4 {[%emt 0:00:02]} Ke1 {[%emt 0:00:03]} 141. Qe4+ {[%emt 0:00:05]} Kf1 {[%emt 0:00:09]} 142. Qc4+ {[%emt 0:00:10]} Qe2 {[%emt 0:00:05]} 143. Qc5 {[%emt 0:01:02]} Qe1+ {[%emt 0:00:06]} 144. Kh3 {[%emt 0:00:16]} c1=Q {[%emt 0:00:05]} 145. Qd6 {[%emt 0:00:12]} Qce3 {[%emt 0:00:14]} 146. Qf6 {[%emt 0:00:13]} Q3f2 {[%emt 0:00:24]} 147. Qa6+ {[%emt 0:00:16]} Kg1 {[%emt 0:00:05]} 0-1

[Event "Czech Open Rapid G1 2024"]
[Site "Pardubice"]
[Date "2024.07.18"]
[Round "6.18"]
[White "Mojzis, Jaroslav"]
[Black "Jurek, Josef"]
[Result "1/2-1/2"]
[Annotator "RC"]
[ECO "E15"]
[WhiteElo "2068"]
[BlackElo "2200"]
[PlyCount "65"]
[EventDate "2024.07.16"]
[EventType "swiss"]
[EventCountry "CZE"]
[SourceTitle "playchess.com"]
[Source "ChessBase"]
[SourceQuality "1"]
[TimeControl "1200+10"]

1. d4 {[%emt 0:00:02]} Nf6 {[%emt 0:00:10]} 2. c4 {[%emt 0:00:03]} e6 {[%emt 0:00:05]} 3. Nf3 {[%emt 0:00:01]} b6 {[%emt 0:00:27]} 4. g3 {[%emt 0:00:05]} Ba6 {[%emt 0:00:14]} 5. Qc2 {[%emt 0:00:43]} c5 {[%emt 0:00:40]} 6. Bg2 {[%emt 0:00:15]} Bb7 {[%emt 0:00:22]} 7. O-O {[%emt 0:02:16]} cxd4 {[%emt 0:00:16]} 8. Nxd4 {[%emt 0:00:02]} Bxg2 {[%emt 0:00:05]} 9. Kxg2 {[%emt 0:00:02]} Qc8 {[%emt 0:00:35]} 10. Bg5 {[%emt 0:03:00]} Be7 {[%emt 0:01:39]} 11. Nd2 {[%emt 0:01:17]} Qb7+ {[%emt 0:01:09]} 12. f3 {[%emt 0:01:57]} a6 {[%emt 0:00:20]} 13. e4 {[%emt 0:01:24]} d6 {[%emt 0:00:31]} 14. Qa4+ {[%emt 0:00:25]} Nbd7 {[%emt 0:01:42]} 15. b4 {[%emt 0:02:09]} O-O {[%emt 0:00:38]} 16. Nc6 {[%emt 0:00:27]} Rfe8 {[%emt 0:01:50]} 17. Nxe7+ {[%emt 0:00:05]} Rxe7 {[%emt 0:00:02]} 18. Rfe1 {[%emt 0:01:38]} Ree8 {[%emt 0:00:56]} 19. Qb3 {[%emt 0:00:10]} Rac8 {[%emt 0:01:08]} 20. Nf1 {[%emt 0:00:20]} h6 {[%emt 0:00:47]} 21. Bxf6 {[%emt 0:01:31]} Nxf6 {[%emt 0:00:03]} 22. Rad1 {[%emt 0:00:04]} Rc6 {[%emt 0:00:18]} 23. b5 {[%emt 0:00:59]} axb5 {[%emt 0:01:33]} 24. cxb5 {[%emt 0:00:03]} Rc5 {[%emt 0:00:47]} 25. Rxd6 {[%emt 0:00:08]} Qc7 {[%emt 0:00:16]} 26. Red1 {[%emt 0:00:56]} Rc3 {[%emt 0:01:21]} 27. Qb4 {[%emt 0:00:20]} Ra8 {[%emt 0:00:42]} 28. Rd8+ {[%emt 0:00:41]} Rxd8 {[%emt 0:00:44]} 29. Rxd8+ {[%emt 0:00:01]} Kh7 {[%emt 0:00:17]} 30. Rd2 {[%emt 0:00:07]} Rc4 {[%emt 0:00:36]} 31. Qb3 {[%emt 0:00:11]} Qc5 {[%emt 0:00:17]} 32. a3 {[%emt 0:01:51]} Rc3 {[%emt 0:00:56]} 33. Qb4 {[%emt 0:00:51]} 1/2-1/2

[Event "Czech Open Rapid G1 2024"]
[Site "Pardubice"]
[Date "2024.07.18"]
[Round "6.19"]
[White "Dorokhina, Elizaveta"]
[Black "Ludvik, Tomas"]
[Result "0-1"]
[Annotator "RC"]
[ECO "D02"]
[WhiteElo "1962"]
[BlackElo "2210"]
[PlyCount "70"]
[EventDate "2024.07.16"]
[EventType "swiss"]
[EventCountry "CZE"]
[SourceTitle "playchess.com"]
[Source "ChessBase"]
[SourceQuality "1"]
[TimeControl "1200+10"]

1. d4 {[%emt 0:00:02]} d5 {[%emt 0:00:03]} 2. Nf3 {[%emt 0:00:02]} Nf6 {[%emt 0:00:02]} 3. Bf4 {[%emt 0:00:02]} c5 {[%emt 0:00:02]} 4. e3 {[%emt 0:00:02]} Nc6 {[%emt 0:00:01]} 5. Nbd2 {[%emt 0:00:02]} Qb6 {[%emt 0:00:12]} 6. dxc5 {[%emt 0:00:03]} Qxb2 {[%emt 0:00:02]} 7. Rb1 {[%emt 0:00:02]} Qc3 {[%emt 0:00:02]} 8. Bb5 {[%emt 0:00:11]} g6 {[%emt 0:00:04]} 9. O-O {[%emt 0:00:22]} Bg7 {[%emt 0:00:04]} 10. e4 {[%emt 0:01:26]} Nxe4 {[%emt 0:02:25]} 11. Re1 {[%emt 0:03:35]} O-O {[%emt 0:02:18]} 12. Nxe4 {[%emt 0:00:36]} dxe4 {[%emt 0:00:02]} 13. Rxe4 {[%emt 0:00:12]} Bf5 {[%emt 0:03:50]} 14. Rc4 {[%emt 0:00:35]} Qa3 {[%emt 0:00:19]} 15. Bxc6 {[%emt 0:05:36]} bxc6 {[%emt 0:00:02]} 16. Be5 {[%emt 0:00:33]} Qxa2 {[%emt 0:03:49]} 17. Rc3 {[%emt 0:00:28]} Rfd8 {[%emt 0:01:03]} 18. Qc1 {[%emt 0:00:26]} Bh6 {[%emt 0:00:36]} 19. Qf1 {[%emt 0:00:51]} f6 {[%emt 0:01:38]} 20. Ra1 {[%emt 0:01:32]} Qd5 {[%emt 0:00:21]} 21. Bc7 {[%emt 0:00:16]} Rd7 {[%emt 0:00:32]} 22. Bb6 {[%emt 0:00:16]} Be4 {[%emt 0:00:54]} 23. h3 {[%emt 0:00:58]} Bg7 {[%emt 0:01:19]} 24. Rca3 {[%emt 0:00:54]} Bxc2 {[%emt 0:00:14]} 25. Bxa7 {[%emt 0:00:41]} Be4 {[%emt 0:01:44]} 26. Bb6 {[%emt 0:00:20]} Rxa3 {[%emt 0:00:04]} 27. Rxa3 {[%emt 0:00:01]} Qd1 {[%emt 0:01:03]} 28. Ne1 {[%emt 0:01:02]} Qc1 {[%emt 0:01:15]} 29. Ra8+ {[%emt 0:00:39]} Kf7 {[%emt 0:00:02]} 30. Ra4 {[%emt 0:01:37]} f5 {[%emt 0:00:25]} 31. Rc4 {[%emt 0:01:41]} Qa1 {[%emt 0:00:23]} 32. Rxe4 {[%emt 0:00:12]} fxe4 {[%emt 0:00:02]} 33. Qc4+ {[%emt 0:00:02]} e6 {[%emt 0:00:26]} 34. Qxe4 {[%emt 0:00:03]} Bc3 {[%emt 0:00:15]} 35. Kf1 {[%emt 0:00:25]} Bxe1 {[%emt 0:00:07]} 0-1